Workbook

Sheet 31.05.2018
B1: 1 смена | G1: 2 смена | L1: 3 смена
B2: Кол-во | C2: Курс | D2: % от общей | E2: Изм кап. % | F2: Капитализация | G2: Кол-во | H2: Курс | I2: % от общей | J2: Изм кап. % | K2: Капитализация | L2: Кол-во | M2: Курс | N2: % от общей | O2: Изм кап. % | P2: Капитализация
A3: Доллар | B3: 10000 | C3: 62.4681 | D3: =(F3/(F16/100))/100 -> 0.3707823603 | E3: =((F3-P3)/(F3/100)) -> 0 | F3: =B3*C3 -> 624681 | G3: 10000 | H3: 62.4681 | I3: =(K3/(K16/100))/100 -> 0.3699065479 | J3: =((K3-F3)/(K3/100)) -> 0 | K3: =G3*H3 -> 624681 | L3: 10000 | M3: 62.4681 | N3: =(P3/(P16/100))/100 -> 0.3697438962 | O3: =(P3-K3)/(P3/100) -> 0 | P3: =L3*M3 -> 624681
A4: Bitcoin | B4: 2 | C4: 411332.2731 | D4: =(F4/(F16/100))/100 -> 0.48829643 | E4: -0.4622338227 | F4: 822664.5462 | G4: 2 | H4: 412866.5533 | I4: =(K4/(K16/100))/100 -> 0.4889600979 | J4: 0.3716164843 | K4: 825733.1066 | L4: 2 | M4: 413233.59 | N4: =(P4/(P16/100))/100 -> 0.4891795896 | O4: 0.08882064016 | P4: 826467.18
A5: Litecoin | B5: 3 | C5: 6157.49303 | D5: =(F5/(F16/100))/100 -> 0.01096442728 | E5: -0.3728298171 | F5: 18472.47909 | G5: 3 | H5: 6148.36637 | I5: =(K5/(K16/100))/100 -> 0.01092231545 | J5: -0.148440406 | K5: 18445.09911 | L5: 3 | M5: 6180.45 | N5: =(P5/(P16/100))/100 -> 0.01097448296 | O5: 0.5191147894 | P5: 18541.35
A6: Ethereum | B6: 1 | C6: 31716.94844 | D6: =(F6/(F16/100))/100 -> 0.01882574467 | E6: 0.06765606736 | F6: 31716.94844 | G6: 1 | H6: 31678.71387 | I6: =(K6/(K16/100))/100 -> 0.01875863631 | J6: -0.1206948305 | K6: 31678.71387 | L6: 1 | M6: 31695.49 | N6: =(P6/(P16/100))/100 -> 0.01876031761 | O6: 0.05292907603 | P6: 31695.49
A7: Dash | B7: 1.5 | C7: 16522.7255 | D7: =(F7/(F16/100))/100 -> 0.01471071273 | E7: -2.379658852 | F7: 24784.08825 | G7: 1.5 | H7: 16923.1845 | I7: =(K7/(K16/100))/100 -> 0.01503166438 | J7: 2.366333594 | K7: 25384.77675 | L7: 1.5 | M7: 16915.91 | N7: =(P7/(P16/100))/100 -> 0.01501859622 | O7: -0.04300389397 | P7: 25373.865
A8: Евро | B8: 100 | C8: 73.0475 | D8: =(F8/(F16/100))/100 -> 0.004335768891 | E8: 0 | F8: 7304.75 | G8: 100 | H8: 73.0475 | I8: =(K8/(K16/100))/100 -> 0.004325527518 | J8: 0 | K8: 7304.75 | L8: 100 | M8: 73.0475 | N8: =(P8/(P16/100))/100 -> 0.004323625539 | O8: 0 | P8: 7304.75
A9: Zcash | B9: 0.5 | C9: 12140.54683 | D9: =(F9/(F16/100))/100 -> 0.003603039479 | E9: 0.2870285045 | F9: 6070.273415 | G9: 0.5 | H9: 12119.98866 | I9: =(K9/(K16/100))/100 -> 0.003588442073 | J9: -0.1696220234 | K9: 6059.99433 | L9: 0.5 | M9: 12105.7 | N9: =(P9/(P16/100))/100 -> 0.003582635524 | O9: -0.1180324971 | P9: 6052.85
A10: Dogecoin | B10: 10000 | C10: 0.18277 | D10: =(F10/(F16/100))/100 -> 0.001084839974 | E10: 0.3665809487 | F10: 1827.7 | G10: 10000 | H10: 0.18181 | I10: =(K10/(K16/100))/100 -> 0.001076592844 | J10: -0.5280237611 | K10: 1818.1 | L10: 10000 | M10: 0.1821 | N10: =(P10/(P16/100))/100 -> 0.001077835943 | O10: 0.1592531576 | P10: 1821
A11: Bitcoin Cash | B11: 0.25 | C11: 54158.47287 | D11: =(F11/(F16/100))/100 -> 0.008036504392 | E11: -0.09946205486 | F11: 13539.61822 | G11: 0.25 | H11: 54407.44196 | I11: =(K11/(K16/100))/100 -> 0.008054378568 | J11: 0.4576011682 | K11: 13601.86049 | L11: 0.25 | M11: 54212.34 | N11: =(P11/(P16/100))/100 -> 0.008021967137 | O11: -0.359884779 | P11: 13553.085
A12: Ripple | B12: 1000 | C12: 33.70321 | D12: =(F12/(F16/100))/100 -> 0.0200046996 | E12: -0.898045023 | F12: 33703.21 | G12: 1000 | H12: 34.04616 | I12: =(K12/(K16/100))/100 -> 0.02016052595 | J12: 1.007308901 | K12: 34046.16 | L12: 1000 | M12: 34.00588 | N12: =(P12/(P16/100))/100 -> 0.02012781974 | O12: -0.1184501033 | P12: 34005.88
A13: Ether Classic | B13: 0 | C13: 921.90538 | D13: =(F13/(F16/100))/100 -> 0 | F13: 0 | G13: 0 | H13: 921.00865 | I13: =(K13/(K16/100))/100 -> 0 | K13: 0 | L13: 0 | M13: 917.77098 | N13: =(P13/(P16/100))/100 -> 0 | P13: 0
A14: Monero | B14: 0 | C14: 8075.92725 | D14: =(F14/(F16/100))/100 -> 0 | F14: 0 | G14: 0 | H14: 8077.56661 | I14: =(K14/(K16/100))/100 -> 0 | K14: 0 | L14: 0 | M14: 7980.88 | N14: =(P14/(P16/100))/100 -> 0 | P14: 0
A15: Рубль | B15: 100000 | D15: =(F15/(F16/100))/100 -> 0.05935547268 | E15: 0 | F15: =B15 -> 100000 | G15: 100000 | I15: =(K15/(K16/100))/100 -> 0.05921527113 | J15: 0 | K15: =G15 -> 100000 | L15: 100000 | N15: =(P15/(P16/100))/100 -> 0.05918923357 | O15: 0 | P15: =L15 -> 100000
A16: Итог | D16: Прирост | E16: =F16-P16 -> -4731.836368 | F16: =SUM(F3:F15) -> 1684764.614 | I16: Прирост | J16: =K16-F16 -> 3988.947478 | K16: =SUM(K3:K15) -> 1688753.561 | N16: Прирост | O16: =P16-K16 -> 742.88889 | P16: =SUM(P3:P15) -> 1689496.45
E20: Прирост

Sheet 17.06.2018
B1: 1 смена | G1: 2 смена | L1: 3 смена
B2: Кол-во | C2: Курс | D2: % от общей | E2: Изм кап. % | F2: Капитализация | G2: Кол-во | H2: Курс | I2: % от общей | J2: Изм кап. % | K2: Капитализация | L2: Кол-во | M2: Курс | N2: % от общей | O2: Изм кап. % | P2: Капитализация
A3: Доллар | B3: 10000 | C3: 62.4681 | D3: =(F3/(F16/100))/100 -> 0.3699521016 | E3: =((F3-P3)/(F3/100)) -> 0 | F3: =B3*C3 -> 624681 | G3: 10000 | H3: 62.4681 | I3: =(K3/(K16/100))/100 -> 0.3704058909 | J3: =((K3-F3)/(K3/100)) -> 0 | K3: =G3*H3 -> 624681 | L3: 10000 | M3: 62.4681 | N3: =(P3/(P16/100))/100 -> 0.3725311988 | O3: =(P3-K3)/(P3/100) -> 0 | P3: =L3*M3 -> 624681
A4: Bitcoin | B4: 2 | C4: 412842.4263 | D4: =(F4/(F16/100))/100 -> 0.4889917357 | E4: 1.136794181 | F4: 825684.8526 | G4: 2 | H4: 412142.4395 | I4: =(K4/(K16/100))/100 -> 0.4887614239 | J4: -0.1698409804 | K4: 824284.879 | L4: 2 | M4: 408149.2576 | N4: =(P4/(P16/100))/100 -> 0.4868031274 | O4: -0.9783631467 | P4: 816298.5152
A5: Litecoin | B5: 3 | C5: 6141.21437 | D5: =(F5/(F16/100))/100 -> 0.01091095373 | E5: 1.586239694 | F5: 18423.64311 | G5: 3 | H5: 6086.73317 | I5: =(K5/(K16/100))/100 -> 0.01082742307 | J5: -0.8950811294 | K5: 18260.19951 | L5: 3 | M5: 6043.79999 | N5: =(P5/(P16/100))/100 -> 0.01081273829 | O5: -0.7103673197 | P5: 18131.39997
A6: Ethereum | B6: 1 | C6: 31726.176 | D6: =(F6/(F16/100))/100 -> 0.01878905471 | E6: 1.351926245 | F6: 31726.176 | G6: 1 | H6: 31688.04104 | I6: =(K6/(K16/100))/100 -> 0.01878948947 | J6: -0.120344959 | K6: 31688.04104 | L6: 1 | M6: 31297.2615 | N6: =(P6/(P16/100))/100 -> 0.01866425639 | O6: -1.248606176 | P6: 31297.2615
A7: Dash | B7: 1.5 | C7: 16998.839 | D7: =(F7/(F16/100))/100 -> 0.01510072232 | E7: 2.589156236 | F7: 25498.2585 | G7: 1.5 | H7: 17039.449 | I7: =(K7/(K16/100))/100 -> 0.01515536479 | J7: 0.2383293028 | K7: 25559.1735 | L7: 1.5 | M7: 16558.7125 | N7: =(P7/(P16/100))/100 -> 0.01481228904 | O7: -2.903223907 | P7: 24838.06875
A8: Евро | B8: 100 | C8: 73.0475 | D8: =(F8/(F16/100))/100 -> 0.004326060203 | E8: 0 | F8: 7304.75 | G8: 100 | H8: 73.0475 | I8: =(K8/(K16/100))/100 -> 0.004331366621 | J8: 0 | K8: 7304.75 | L8: 100 | M8: 73.0475 | N8: =(P8/(P16/100))/100 -> 0.004356219053 | O8: 0 | P8: 7304.75
A9: Zcash | B9: 0.5 | C9: 12026.47853 | D9: =(F9/(F16/100))/100 -> 0.003561194439 | E9: 2.969746457 | F9: 6013.239265 | G9: 0.5 | H9: 11827.91022 | I9: =(K9/(K16/100))/100 -> 0.003506691914 | J9: -1.678811441 | K9: 5913.95511 | L9: 0.5 | M9: 11669.32261 | N9: =(P9/(P16/100))/100 -> 0.003479525342 | O9: -1.359012989 | P9: 5834.661305
A10: Dogecoin | B10: 10000 | C10: 0.18027 | D10: =(F10/(F16/100))/100 -> 0.001067605151 | E10: -0.6767626338 | F10: 1802.7 | G10: 10000 | H10: 0.18134 | I10: =(K10/(K16/100))/100 -> 0.001075259281 | J10: 0.5900518363 | K10: 1813.4 | L10: 10000 | M10: 0.18149 | N10: =(P10/(P16/100))/100 -> 0.001082323414 | O10: 0.08264918177 | P10: 1814.9
A11: Bitcoin Cash | B11: 0.25 | C11: 54123.47472 | D11: =(F11/(F16/100))/100 -> 0.008013327289 | E11: 1.025710254 | F11: 13530.86868 | G11: 0.25 | H11: 53808.31712 | I11: =(K11/(K16/100))/100 -> 0.007976438231 | J11: -0.5857042496 | K11: 13452.07928 | L11: 0.25 | M11: 53568.32469 | N11: =(P11/(P16/100))/100 -> 0.007986425157 | O11: -0.4480118267 | P11: 13392.08117
A12: Ripple | B12: 1000 | C12: 33.88013 | D12: =(F12/(F16/100))/100 -> 0.02006468148 | E12: 1.821834804 | F12: 33880.13 | G12: 1000 | H12: 33.51948 | I12: =(K12/(K16/100))/100 -> 0.01987544499 | J12: -1.075941512 | K12: 33519.48 | L12: 1000 | M12: 33.26289 | N12: =(P12/(P16/100))/100 -> 0.01983646739 | O12: -0.7714002 | P12: 33262.89
A13: Ether Classic | B13: 0 | C13: 917.005 | D13: =(F13/(F16/100))/100 -> 0 | F13: 0 | G13: 0 | H13: 904.56359 | I13: =(K13/(K16/100))/100 -> 0 | K13: 0 | L13: 0 | M13: 908.61861 | N13: =(P13/(P16/100))/100 -> 0 | P13: 0
A14: Monero | B14: 0 | C14: 7927.14997 | D14: =(F14/(F16/100))/100 -> 0 | F14: 0 | G14: 0 | H14: 7848.9677 | I14: =(K14/(K16/100))/100 -> 0 | K14: 0 | L14: 0 | M14: 7762.02954 | N14: =(P14/(P16/100))/100 -> 0 | P14: 0
A15: Рубль | B15: 100000 | D15: =(F15/(F16/100))/100 -> 0.05922256345 | E15: 0 | F15: =B15 -> 100000 | G15: 100000 | I15: =(K15/(K16/100))/100 -> 0.05929520683 | J15: 0 | K15: =G15 -> 100000 | L15: 100000 | N15: =(P15/(P16/100))/100 -> 0.05963542973 | O15: 0 | P15: =L15 -> 100000
A16: Итог | D16: Прирост | E16: =F16-'31.05.2018'!P16 -> -950.831885 | F16: =SUM(F3:F15) -> 1688545.618 | I16: Прирост | J16: =K16-F16 -> -2068.660635 | K16: =SUM(K3:K15) -> 1686476.957 | N16: Прирост | O16: =P16-K16 -> -9621.429582 | P16: =SUM(P3:P15) -> 1676855.528
F20: Прирост | G20: =SUM(E16,J16,O16) -> -12640.9221

Sheet 18.06.2018
B1: 1 смена | G1: 2 смена | L1: 3 смена | R1: Клетка G20 — сделать в формуле (F3-'16.06.2018'!P3) динамическое измнение даты
B2: Кол-во | C2: Курс | D2: % от общей | E2: Изм кап. % | F2: Капитализация | G2: Кол-во | H2: Курс | I2: % от общей | J2: Изм кап. % | K2: Капитализация | L2: Кол-во | M2: Курс | N2: % от общей | O2: Изм кап. % | P2: Капитализация
A3: Доллар | B3: 10000 | C3: 63.08445 | D3: =(F3/(F16/100))/100 -> 0.3729542489 | E3: =((F3-P3)/(F3/100)) -> 0 | F3: =B3*C3 -> 630844.5 | G3: 10000 | H3: 63.08445 | I3: =(K3/(K16/100))/100 -> 0.3637438512 | J3: =((K3-F3)/(K3/100)) -> 0 | K3: =G3*H3 -> 630844.5 | L3: 10000 | M3: 63.08445 | N3: =(P3/(P16/100))/100 -> 0.3637438512 | O3: =(P3-K3)/(P3/100) -> 0 | P3: =L3*M3 -> 630844.5
A4: Bitcoin | B4: 2 | C4: 412894.1 | D4: =(F4/(F16/100))/100 -> 0.4882046493 | E4: -4.443067966 | F4: 825788.2 | G4: 2 | H4: 431239.2655 | I4: =(K4/(K16/100))/100 -> 0.4973036342 | J4: 4.254057308 | K4: 862478.531 | L4: 2 | M4: 431239.2655 | N4: =(P4/(P16/100))/100 -> 0.4973036342 | O4: 0 | P4: 862478.531
A5: Litecoin | B5: 3 | C5: 6010.78 | D5: =(F5/(F16/100))/100 -> 0.01066069027 | E5: -3.302282566 | F5: 18032.34 | G5: 3 | H5: 6209.27294 | I5: =(K5/(K16/100))/100 -> 0.01074076822 | J5: 3.196717908 | K5: 18627.81882 | L5: 3 | M5: 6209.27294 | N5: =(P5/(P16/100))/100 -> 0.01074076822 | O5: 0 | P5: 18627.81882
A6: Ethereum | B6: 1 | C6: 31457.91 | D6: =(F6/(F16/100))/100 -> 0.01859786555 | E6: -4.442319022 | F6: 31457.91 | G6: 1 | H6: 32855.37072 | I6: =(K6/(K16/100))/100 -> 0.01894435012 | J6: 4.253370726 | K6: 32855.37072 | L6: 1 | M6: 32855.37072 | N6: =(P6/(P16/100))/100 -> 0.01894435012 | O6: 0 | P6: 32855.37072
A7: Dash | B7: 1.5 | C7: 16251.91 | D7: =(F7/(F16/100))/100 -> 0.01441215439 | E7: -3.221455201 | F7: 24377.865 | G7: 1.5 | H7: 16775.458 | I7: =(K7/(K16/100))/100 -> 0.01450905025 | J7: 3.120916281 | K7: 25163.187 | L7: 1.5 | M7: 16775.458 | N7: =(P7/(P16/100))/100 -> 0.01450905025 | O7: 0 | P7: 25163.187
A8: Евро | B8: 100 | C8: 73.0077 | D8: =(F8/(F16/100))/100 -> 0.004316203425 | E8: 0 | F8: 7300.77 | G8: 100 | H8: 73.0077 | I8: =(K8/(K16/100))/100 -> 0.004209611396 | J8: 0 | K8: 7300.77 | L8: 100 | M8: 73.0077 | N8: =(P8/(P16/100))/100 -> 0.004209611396 | O8: 0 | P8: 7300.77
A9: Zcash | B9: 0.5 | C9: 11742.09 | D9: =(F9/(F16/100))/100 -> 0.003470952316 | E9: -7.009126058 | F9: 5871.045 | G9: 0.5 | H9: 12565.10789 | I9: =(K9/(K16/100))/100 -> 0.003622509774 | J9: 6.550026448 | K9: 6282.553945 | L9: 0.5 | M9: 12565.10789 | N9: =(P9/(P16/100))/100 -> 0.003622509774 | O9: 0 | P9: 6282.553945
A10: Dogecoin | B10: 10000 | C10: 0.18222 | D10: =(F10/(F16/100))/100 -> 0.001077281695 | E10: -5.312259906 | F10: 1822.2 | G10: 10000 | H10: 0.1919 | I10: =(K10/(K16/100))/100 -> 0.001106492092 | J10: 5.044293903 | K10: 1919 | L10: 10000 | M10: 0.1919 | N10: =(P10/(P16/100))/100 -> 0.001106492092 | O10: 0 | P10: 1919
A11: Bitcoin Cash | B11: 0.25 | C11: 53374.24 | D11: =(F11/(F16/100))/100 -> 0.007888691107 | E11: -6.194730173 | F11: 13343.56 | G11: 0.25 | H11: 56680.63015 | I11: =(K11/(K16/100))/100 -> 0.008170488408 | J11: 5.833368721 | K11: 14170.15754 | L11: 0.25 | M11: 56680.63015 | N11: =(P11/(P16/100))/100 -> 0.008170488408 | O11: 0 | P11: 14170.15754
A12: Ripple | B12: 1000 | C12: 32.6412 | D12: =(F12/(F16/100))/100 -> 0.01929742469 | E12: -6.208840361 | F12: 32641.2 | G12: 1000 | H12: 34.66784 | I12: =(K12/(K16/100))/100 -> 0.01998941678 | J12: 5.845879063 | K12: 34667.84 | L12: 1000 | M12: 34.66784 | N12: =(P12/(P16/100))/100 -> 0.01998941678 | O12: 0 | P12: 34667.84
A13: Ether Classic | B13: 0 | C13: 903.66183 | D13: =(F13/(F16/100))/100 -> 0 | F13: 0 | G13: 0 | H13: 972.93073 | I13: =(K13/(K16/100))/100 -> 0 | K13: 0 | L13: 0 | M13: 972.93073 | N13: =(P13/(P16/100))/100 -> 0 | P13: 0
A14: Monero | B14: 0 | C14: 7785.79 | D14: =(F14/(F16/100))/100 -> 0 | F14: 0 | G14: 0 | H14: 8124.25798 | I14: =(K14/(K16/100))/100 -> 0 | K14: 0 | L14: 0 | M14: 8124.25798 | N14: =(P14/(P16/100))/100 -> 0 | P14: 0
A15: Рубль | B15: 100000 | D15: =(F15/(F16/100))/100 -> 0.05911983839 | E15: 0 | F15: =B15 -> 100000 | G15: 100000 | I15: =(K15/(K16/100))/100 -> 0.05765982761 | J15: 0 | K15: =G15 -> 100000 | L15: 100000 | N15: =(P15/(P16/100))/100 -> 0.05765982761 | O15: 0 | P15: =L15 -> 100000
A16: Итог | D16: Прирост | E16: =F16-'17.06.2018'!P16 -> 14624.0621 | F16: =SUM(F3:F15) -> 1691479.59 | I16: Прирост | J16: =K16-F16 -> 42830.139 | K16: =SUM(K3:K15) -> 1734309.729 | N16: Прирост | O16: =P16-K16 -> 0 | P16: =SUM(P3:P15) -> 1734309.729
F20: Прирост | G20: =F16-'17.06.2018'!P16 -> 14624.0621
G21: =$F$3-INDIRECT("'"&TEXT(DATEVALUE(MID(CELL("filename"),SEARCH("]",CELL("filename"))+1,LEN(CELL("filename"))))-1,"ДД.ММ.ГГГ")&"'!P3",1) -> 0
G22: =F3-INDIRECT(TEXT(RIGHTB(CELL("filename"),10)-1,"'ДД.ММ.ГГГГ'!P\3")) -> 0

Sheet 19.06.2018
B1: 1 смена | G1: 2 смена | L1: 3 смена | R1: Клетка G20 — сделать в формуле (F3-'16.06.2018'!P3) динамическое измнение даты
B2: Кол-во | C2: Курс | D2: % от общей | E2: Изм кап. % | F2: Капитализация | G2: Кол-во | H2: Курс | I2: % от общей | J2: Изм кап. % | K2: Капитализация | L2: Кол-во | M2: Курс | N2: % от общей | O2: Изм кап. % | P2: Капитализация
A3: Доллар | B3: 10000 | C3: 63.08445 | D3: =(F3/(F16/100))/100 -> 0.3729542489 | E3: =((F3-P3)/(F3/100)) -> 0 | F3: =B3*C3 -> 630844.5 | G3: 10000 | H3: 63.08445 | I3: =(K3/(K16/100))/100 -> 0.3637438512 | J3: =((K3-F3)/(K3/100)) -> 0 | K3: =G3*H3 -> 630844.5 | L3: 10000 | M3: 63.08445 | N3: =(P3/(P16/100))/100 -> 0.3637438512 | O3: =(P3-K3)/(P3/100) -> 0 | P3: =L3*M3 -> 630844.5
A4: Bitcoin | B4: 2 | C4: 412894.1 | D4: =(F4/(F16/100))/100 -> 0.4882046493 | E4: -4.443067966 | F4: 825788.2 | G4: 2 | H4: 431239.2655 | I4: =(K4/(K16/100))/100 -> 0.4973036342 | J4: 4.254057308 | K4: 862478.531 | L4: 2 | M4: 431239.2655 | N4: =(P4/(P16/100))/100 -> 0.4973036342 | O4: 0 | P4: 862478.531
A5: Litecoin | B5: 3 | C5: 6010.78 | D5: =(F5/(F16/100))/100 -> 0.01066069027 | E5: -3.302282566 | F5: 18032.34 | G5: 3 | H5: 6209.27294 | I5: =(K5/(K16/100))/100 -> 0.01074076822 | J5: 3.196717908 | K5: 18627.81882 | L5: 3 | M5: 6209.27294 | N5: =(P5/(P16/100))/100 -> 0.01074076822 | O5: 0 | P5: 18627.81882
A6: Ethereum | B6: 1 | C6: 31457.91 | D6: =(F6/(F16/100))/100 -> 0.01859786555 | E6: -4.442319022 | F6: 31457.91 | G6: 1 | H6: 32855.37072 | I6: =(K6/(K16/100))/100 -> 0.01894435012 | J6: 4.253370726 | K6: 32855.37072 | L6: 1 | M6: 32855.37072 | N6: =(P6/(P16/100))/100 -> 0.01894435012 | O6: 0 | P6: 32855.37072
A7: Dash | B7: 1.5 | C7: 16251.91 | D7: =(F7/(F16/100))/100 -> 0.01441215439 | E7: -3.221455201 | F7: 24377.865 | G7: 1.5 | H7: 16775.458 | I7: =(K7/(K16/100))/100 -> 0.01450905025 | J7: 3.120916281 | K7: 25163.187 | L7: 1.5 | M7: 16775.458 | N7: =(P7/(P16/100))/100 -> 0.01450905025 | O7: 0 | P7: 25163.187
A8: Евро | B8: 100 | C8: 73.0077 | D8: =(F8/(F16/100))/100 -> 0.004316203425 | E8: 0 | F8: 7300.77 | G8: 100 | H8: 73.0077 | I8: =(K8/(K16/100))/100 -> 0.004209611396 | J8: 0 | K8: 7300.77 | L8: 100 | M8: 73.0077 | N8: =(P8/(P16/100))/100 -> 0.004209611396 | O8: 0 | P8: 7300.77
A9: Zcash | B9: 0.5 | C9: 11742.09 | D9: =(F9/(F16/100))/100 -> 0.003470952316 | E9: -7.009126058 | F9: 5871.045 | G9: 0.5 | H9: 12565.10789 | I9: =(K9/(K16/100))/100 -> 0.003622509774 | J9: 6.550026448 | K9: 6282.553945 | L9: 0.5 | M9: 12565.10789 | N9: =(P9/(P16/100))/100 -> 0.003622509774 | O9: 0 | P9: 6282.553945
A10: Dogecoin | B10: 10000 | C10: 0.18222 | D10: =(F10/(F16/100))/100 -> 0.001077281695 | E10: -5.312259906 | F10: 1822.2 | G10: 10000 | H10: 0.1919 | I10: =(K10/(K16/100))/100 -> 0.001106492092 | J10: 5.044293903 | K10: 1919 | L10: 10000 | M10: 0.1919 | N10: =(P10/(P16/100))/100 -> 0.001106492092 | O10: 0 | P10: 1919
A11: Bitcoin Cash | B11: 0.25 | C11: 53374.24 | D11: =(F11/(F16/100))/100 -> 0.007888691107 | E11: -6.194730173 | F11: 13343.56 | G11: 0.25 | H11: 56680.63015 | I11: =(K11/(K16/100))/100 -> 0.008170488408 | J11: 5.833368721 | K11: 14170.15754 | L11: 0.25 | M11: 56680.63015 | N11: =(P11/(P16/100))/100 -> 0.008170488408 | O11: 0 | P11: 14170.15754
A12: Ripple | B12: 1000 | C12: 32.6412 | D12: =(F12/(F16/100))/100 -> 0.01929742469 | E12: -6.208840361 | F12: 32641.2 | G12: 1000 | H12: 34.66784 | I12: =(K12/(K16/100))/100 -> 0.01998941678 | J12: 5.845879063 | K12: 34667.84 | L12: 1000 | M12: 34.66784 | N12: =(P12/(P16/100))/100 -> 0.01998941678 | O12: 0 | P12: 34667.84
A13: Ether Classic | B13: 0 | C13: 903.66183 | D13: =(F13/(F16/100))/100 -> 0 | F13: 0 | G13: 0 | H13: 972.93073 | I13: =(K13/(K16/100))/100 -> 0 | K13: 0 | L13: 0 | M13: 972.93073 | N13: =(P13/(P16/100))/100 -> 0 | P13: 0
A14: Monero | B14: 0 | C14: 7785.79 | D14: =(F14/(F16/100))/100 -> 0 | F14: 0 | G14: 0 | H14: 8124.25798 | I14: =(K14/(K16/100))/100 -> 0 | K14: 0 | L14: 0 | M14: 8124.25798 | N14: =(P14/(P16/100))/100 -> 0 | P14: 0
A15: Рубль | B15: 100000 | D15: =(F15/(F16/100))/100 -> 0.05911983839 | E15: 0 | F15: =B15 -> 100000 | G15: 100000 | I15: =(K15/(K16/100))/100 -> 0.05765982761 | J15: 0 | K15: =G15 -> 100000 | L15: 100000 | N15: =(P15/(P16/100))/100 -> 0.05765982761 | O15: 0 | P15: =L15 -> 100000
A16: Итог | D16: Прирост | E16: =F16-'17.06.2018'!P16 -> 14624.0621 | F16: =SUM(F3:F15) -> 1691479.59 | I16: Прирост | J16: =K16-F16 -> 42830.139 | K16: =SUM(K3:K15) -> 1734309.729 | N16: Прирост | O16: =P16-K16 -> 0 | P16: =SUM(P3:P15) -> 1734309.729
F20: Прирост | G20: =F3-'18.06.2018'!P3 -> 0
G21: =$F$3-INDIRECT("'"&TEXT(DATEVALUE(MID(CELL("filename"),SEARCH("]",CELL("filename"))+1,LEN(CELL("filename"))))-1,"ДД.ММ.ГГГ")&"'!P3",1) -> 0
G22: =F3-INDIRECT(TEXT(RIGHTB(CELL("filename"),10)-1,"'ДД.ММ.ГГГГ'!P\3")) -> 0
